bitfinex-derivatives/quotes_ETHF0:USTF0_20241008
["timestamp","ask_amount","ask_price","bid_price","bid_amount"]
[1728357139104,3.2,2442.3,2441.9,0.4165]
[1728357139407,3.60952,2442.3,2442.0,0.40955]
[1728357140200,3.60952,2442.3,2442.1,0.40954]
[1728357140600,7.2944,2442.3,2441.9,0.4165]
[1728357140803,3.2,2442.3,2442.1,0.40953]
[1728357141212,3.2,2442.3,2442.2,0.40952]
[1728357141704,7.2944,2442.3,2442.2,0.40952]
[1728357142606,7.2944,2442.3,2442.1,0.40953]
[1728357142807,3.2,2442.3,2442.1,0.40953]
[1728357143011,7.2944,2442.3,2442.1,0.40953]
[1728357143910,4.0944,2442.3,2442.1,0.40953]
[1728357144708,0.4095,2442.4,2442.1,0.40953]
[1728357147182,0.40949,2442.4,2442.1,0.40953]
[1728357147888,0.40952,2442.3,2442.0,0.40955]
[1728357148283,0.40952,2442.3,2442.0,0.40956]
[1728357148580,0.40952,2442.3,2442.0,0.40954]
[1728357149386,0.40952,2442.3,2442.1,0.40954]
[1728357149589,0.40952,2442.3,2441.9,0.4165]
[1728357149590,6.4078,2442.2,2441.9,0.4165]
[1728357149886,6.4078,2442.2,2441.7,0.095]
[1728357149887,3.60957,2442.0,2441.7,0.095]
[1728357150091,3.2,2442.1,2441.9,0.40956]
[1728357150990,3.2,2442.1,2441.8,0.4193]
[1728357151192,0.40956,2442.0,2441.8,0.82888]
[1728357151492,0.40956,2442.0,2441.8,0.4193]
[1728357152489,0.40956,2442.0,2441.8,0.82888]
[1728357154185,0.40956,2442.0,2441.8,0.4193]
[1728357156289,3.2,2442.1,2441.8,0.4193]
[1728357156481,0.40957,2441.9,2441.8,0.4193]
[1728357159482,0.40957,2442.0,2441.8,0.82889]
[1728357160386,0.40957,2442.0,2441.8,0.4193]
[1728357160994,0.40957,2441.9,2441.8,0.4193]
[1728357168100,3.60957,2441.9,2441.8,0.4193]
[1728357174401,1.88957,2441.9,2441.8,0.4193]
[1728357176109,0.40961,2441.7,2441.6,0.40962]
[1728357176311,1.88961,2441.7,2441.6,0.40962]
[1728357176615,1.48,2441.7,2441.6,0.40962]
[1728357177810,0.40962,2441.6,2441.5,0.8184]
[1728357178016,1.88962,2441.6,2441.5,0.8184]
[1728357178513,1.024,2441.8,2441.5,0.8184]
[1728357178514,1.48,2441.8,2441.5,0.8184]
[1728357178715,1.88959,2441.8,2441.6,0.40962]
[1728357178915,1.88959,2441.8,2441.7,0.40961]
[1728357179114,1.88959,2441.8,2441.6,0.40961]
[1728357179517,1.88959,2441.8,2441.7,0.4113]
[1728357191861,1.48,2441.8,2441.5,0.8184]
[1728357192152,1.0241,2441.6,2441.2,0.4133]
[1728357192355,0.40965,2441.5,2441.3,0.40967]
[1728357193056,5.71184,2441.7,2441.2,1.1877]
[1728357193253,0.40967,2441.4,2441.2,1.59739]
[1728357195160,0.40967,2441.3,2441.2,1.1877]
[1728357195848,0.40967,2441.3,2441.2,1.59739]
[1728357196556,1.48,2441.5,2441.2,1.59738]
[1728357196856,0.40967,2441.3,2441.2,1.59738]
[1728357197059,0.40967,2441.3,2441.2,1.1877]
[1728357204735,0.40967,2441.3,2441.2,1.59739]
[1728357205034,0.40967,2441.3,2441.2,1.1877]
[1728357209135,0.40967,2441.3,2441.2,1.59739]
[1728357215446,0.40974,2440.9,2440.8,0.095]
[1728357215643,0.40974,2440.9,2440.6,0.4275]
[1728357215644,0.40977,2440.7,2440.6,0.4275]
[1728357217542,4.0976,2440.7,2440.1,0.095]
[1728357217741,1.88986,2440.2,2440.1,0.3891]
[1728357219032,1.88986,2440.2,2440.1,0.7758]
[1728357221140,1.48,2440.2,2439.9,3.2078]
[1728357221341,1.88989,2440.0,2439.9,3.5945]
[1728357222047,1.88989,2440.0,2439.9,0.3867]
[1728357224444,3.2078,2440.3,2439.9,5.9651]
[1728357224647,3.2078,2440.3,2440.0,0.40988]
[1728357224841,0.40986,2440.2,2440.0,0.40988]
[1728357225046,1.88986,2440.2,2440.0,0.40988]
[1728357225245,1.48,2440.2,2440.0,0.40988]
[1728357225549,0.40988,2440.1,2440.0,0.40988]
[1728357225950,1.88987,2440.2,2440.0,4.50828]
[1728357226148,1.88987,2440.2,2440.0,0.40988]
[1728357226344,1.48,2440.2,2440.0,0.40988]
[1728357226546,0.40988,2440.1,2440.0,0.40988]
[1728357227055,1.88987,2440.2,2440.0,4.0984]
[1728357227252,0.40983,2440.4,2440.3,0.40983]
[1728357227452,0.40983,2440.4,2440.2,0.40985]
[1728357227654,1.48,2440.5,2440.3,0.79484]
[1728357227855,0.40983,2440.4,2440.3,0.79484]
[1728357228253,1.48,2440.5,2440.3,0.79483]
[1728357228447,0.40983,2440.4,2440.3,0.79483]
[1728357228955,0.4098,2440.6,2440.3,4.4826]
[1728357229156,0.4098,2440.6,2440.4,0.40983]
[1728357229457,0.4098,2440.6,2440.3,0.385]
[1728357229458,4.6878,2440.7,2440.5,0.4098]
[1728357229661,5.09757,2440.7,2440.6,0.414]
[1728357230156,1.88977,2440.7,2440.6,0.414]
[1728357231662,1.48,2440.7,2440.6,0.82379]
[1728357232355,1.88977,2440.7,2440.6,0.82379]
[1728357233865,1.88977,2440.7,2440.6,0.414]
[1728357235166,1.88977,2440.7,2440.6,0.82379]
[1728357236759,3.2078,2441.0,2440.6,0.414]
[1728357236958,0.40975,2440.9,2440.6,1.894]
[1728357237275,0.40969,2441.2,2441.1,0.40971]
[1728357237456,0.40971,2441.1,2440.8,3.2078]
[1728357237664,0.40976,2440.8,2440.7,0.4059]
[1728357237856,0.40976,2440.8,2440.7,0.81567]
[1728357238069,2.50432,2441.0,2440.7,0.4059]
[1728357238267,0.40976,2440.8,2440.7,0.81567]
[1728357238976,0.40975,2440.9,2440.8,0.40976]
[1728357239175,2.50432,2441.0,2440.7,0.4059]
[1728357239372,0.40976,2440.8,2440.7,0.81566]
[1728357240365,0.40975,2440.9,2440.8,0.40975]
[1728357240564,0.40976,2440.8,2440.7,0.81567]
[1728357241683,0.40976,2440.8,2440.7,0.81566]
[1728357243880,0.40975,2440.9,2440.8,0.40975]
[1728357244480,0.40975,2440.9,2440.8,0.82195]
[1728357245376,3.2078,2441.1,2440.8,0.4122]
[1728357245572,0.4097,2441.2,2441.1,0.4097]
[1728357247576,1.88968,2441.3,2441.2,0.40969]
[1728357247879,1.48,2441.3,2441.2,0.40969]
[1728357248182,3.2078,2441.4,2441.0,1.8921]
[1728357248384,3.2078,2441.4,2441.3,0.40967]
[1728357248682,4.6878,2441.4,2441.1,0.7956]
[1728357248880,1.88969,2441.3,2441.2,0.40969]
[1728357249079,0.40969,2441.2,2441.1,0.79559]
[1728357249310,1.48,2441.3,2441.1,0.3859]
[1728357249492,1.88968,2441.3,2441.2,0.40969]
[1728357251589,1.48,2441.3,2441.2,0.40969]
[1728357251781,4.6878,2441.4,2441.3,0.40967]
[1728357252186,5.09746,2441.4,2441.3,0.40967]
[1728357255284,4.6878,2441.4,2441.3,0.40967]
[1728357255983,5.09746,2441.4,2441.3,0.40967]
[1728357256893,4.6878,2441.4,2441.3,0.40967]
[1728357257289,5.09746,2441.4,2441.3,0.40967]
[1728357258486,3.61746,2441.4,2441.3,0.40967]
[1728357258700,3.2078,2441.4,2441.3,4.50567]
[1728357259392,3.61746,2441.4,2441.3,4.50567]
[1728357259993,3.61746,2441.4,2441.3,0.40967]
[1728357260493,3.2078,2441.4,2441.3,0.40967]
[1728357261195,1.48,2441.7,2441.3,4.096]
[1728357261391,0.40961,2441.7,2441.6,0.40961]
[1728357262286,0.40961,2441.7,2441.6,0.80411]
[1728357262791,1.88961,2441.7,2441.6,0.80411]
[1728357270895,1.88961,2441.7,2441.6,0.3945]
[1728357273406,1.88961,2441.7,2441.4,0.4052]
[1728357273407,5.5752,2441.7,2441.4,0.4052]
[1728357273705,5.5752,2441.7,2441.4,0.81486]
[1728357273706,1.88964,2441.5,2441.4,0.81486]
[1728357274407,1.48,2441.5,2441.4,0.81486]
[1728357274598,1.48,2441.6,2441.5,0.40963]
[1728357275401,3.566,2441.8,2441.4,0.4052]
[1728357275608,0.40962,2441.7,2441.6,0.40962]
[1728357277400,0.40962,2441.6,2441.5,0.40963]
[1728357277800,1.48,2441.6,2441.4,0.4052]
[1728357278107,1.88965,2441.5,2441.4,0.40966]
[1728357280502,1.48,2441.5,2441.3,0.4045]
[1728357280702,1.88966,2441.5,2441.4,0.40966]
[1728357284106,0.40966,2441.5,2441.4,0.40966]
[1728357286210,3.566,2441.8,2441.3,0.4045]
[1728357286408,0.40964,2441.6,2441.5,0.40963]
[1728357288014,1.88962,2441.7,2441.6,0.40962]
[1728357288215,5.98482,2441.7,2441.6,0.40962]
[1728357289516,0.40963,2441.6,2441.5,0.40962]
[1728357293140,0.40966,2441.5,2441.4,0.40965]
[1728357295222,1.48,2441.6,2441.3,0.4045]
[1728357295419,1.88963,2441.6,2441.5,0.40964]
[1728357296619,0.40963,2441.6,2441.5,0.40964]
[1728357299726,2.86219,2441.8,2441.4,0.40965]
[1728357299727,0.40965,2441.5,2441.4,0.40965]
[1728357300826,0.40966,2441.4,2441.3,0.81417]
[1728357301021,3.61746,2441.4,2441.3,0.81417]
[1728357301819,1.48,2441.5,2441.3,0.4045]
[1728357302030,0.40965,2441.5,2441.4,0.40964]
[1728357305328,0.40966,2441.4,2441.3,0.81417]
[1728357308435,0.40966,2441.4,2441.1,3.2078]
[1728357308436,4.6878,2441.4,2440.9,0.095]
[1728357308780,0.40972,2441.1,2441.0,0.4173]
[1728357308926,1.88972,2441.1,2441.0,0.4173]
[1728357310725,1.88972,2441.1,2441.0,0.82702]
[1728357310924,1.8897,2441.2,2441.1,0.40971]
[1728357311138,0.40971,2441.1,2441.0,0.82702]
[1728357312929,4.6878,2441.4,2441.1,0.40971]
[1728357313128,4.6878,2441.4,2441.0,0.4173]
[1728357313429,4.6878,2441.4,2441.1,0.4097]
[1728357313430,0.40968,2441.3,2441.1,0.4097]
[1728357313733,0.40968,2441.3,2441.1,0.40971]
[1728357315630,4.6878,2441.4,2441.1,0.40971]
[1728357315834,0.40969,2441.2,2441.1,0.40971]
[1728357317436,0.40969,2441.2,2441.1,0.4097]
[1728357320028,4.6878,2441.4,2441.0,0.4173]
[1728357320236,5.71197,2441.4,2441.0,0.82701]
[1728357320434,1.02419,2441.3,2441.0,0.4173]
[1728357320638,0.40971,2441.1,2441.0,0.4173]
[1728357330751,4.23199,2441.3,2441.0,0.4173]
[1728357330949,3.2078,2441.6,2441.1,1.48]
[1728357331247,3.61744,2441.6,2441.5,0.40964]
[1728357331849,0.40964,2441.5,2441.4,1.63295]
[1728357332055,3.2078,2441.6,2441.5,0.40964]
[1728357332950,3.61742,2441.6,2441.5,0.40964]
[1728357334961,0.40962,2441.6,2441.5,0.40964]
[1728357339954,5.71179,2441.8,2441.4,1.63294]
[1728357339955,0.40964,2441.5,2441.4,1.63294]
[1728357343156,0.40964,2441.6,2441.5,0.40963]
[1728357343868,0.40963,2441.7,2441.6,0.40962]
[1728357347172,3.2078,2441.9,2441.6,0.40962]
[1728357347173,3.2078,2441.9,2441.6,1.48]
[1728357347377,3.5661,2442.3,2441.7,1.48]
[1728357347669,0.40955,2442.1,2442.0,0.40954]
[1728357347892,0.40956,2442.0,2441.9,0.40956]
[1728357349066,6.46309,2442.3,2441.8,0.8044]
[1728357349270,0.40955,2442.1,2442.0,0.40955]
[1728357351469,4.6878,2442.3,2441.8,0.8044]
[1728357351663,3.2078,2442.3,2441.9,1.48]
[1728357351862,3.2078,2442.3,2442.2,1.88952]
[1728357352077,0.40946,2442.6,2442.5,0.40947]
[1728357352575,1.48,2442.8,2442.4,1.48]
[1728357352777,0.40944,2442.7,2442.6,0.40945]
[1728357352968,4.23134,2442.9,2442.6,0.40945]
[1728357352969,3.2078,2442.9,2442.6,1.48]
[1728357353275,0.40943,2442.8,2442.7,0.4209]
[1728357353773,4.6878,2442.9,2442.3,0.4848]
[1728357353963,0.40949,2442.4,2442.3,0.4209]
[1728357355868,0.40948,2442.5,2442.3,0.83039]
[1728357356277,0.40948,2442.5,2442.4,0.40949]
[1728357357577,1.88947,2442.6,2442.4,0.82228]
[1728357357878,0.40947,2442.6,2442.5,0.40947]
[1728357360880,0.40947,2442.6,2442.4,0.4128]
[1728357361082,0.40947,2442.6,2442.4,0.82228]
[1728357361285,0.40947,2442.6,2442.4,0.4128]
[1728357361486,0.40947,2442.6,2442.5,0.40947]
[1728357361985,0.40947,2442.6,2442.4,0.82228]
[1728357362782,0.40946,2442.6,2442.5,0.40947]
[1728357363781,0.40946,2442.6,2442.4,0.4128]
[1728357363782,2.50356,2442.8,2442.4,0.82228]
[1728357363984,0.40947,2442.5,2442.4,0.82228]
[1728357364986,0.40947,2442.5,2442.4,1.23218]
[1728357366189,0.40945,2442.7,2442.6,0.40945]
[1728357366376,2.50356,2442.8,2442.4,0.8227]
[1728357366581,0.40947,2442.6,2442.5,0.40946]
[1728357367788,0.40947,2442.6,2442.5,4.50386]
[1728357367995,3.61721,2442.9,2442.8,0.40942]
[1728357368299,0.40937,2443.2,2442.7,1.48]
[1728357368491,0.40937,2443.2,2443.1,0.40937]
[1728357368794,0.40937,2443.2,2442.9,1.48]
[1728357368795,2.50334,2443.4,2442.9,1.48]
[1728357368990,0.40938,2443.1,2443.0,0.40938]
[1728357370694,0.40936,2443.2,2442.9,1.48]
[1728357370893,0.40936,2443.2,2443.1,0.40937]
[1728357374016,0.40936,2443.2,2442.8,1.2104]
[1728357374017,0.40941,2442.9,2442.8,1.61982]
[1728357374307,0.40941,2442.9,2442.8,0.818]
[1728357375510,0.40941,2442.9,2442.8,1.22742]
[1728357376620,0.4094,2443.0,2442.9,0.4094]
[1728357376809,0.40941,2442.9,2442.8,1.22741]
[1728357377017,0.3577,2443.1,2442.8,0.818]
[1728357377219,0.4094,2443.0,2442.9,0.4094]
[1728357377412,0.4094,2443.0,2442.9,0.8246]
[1728357377718,0.4094,2443.0,2442.9,0.4152]
[1728357378115,0.4094,2443.0,2442.9,0.82461]
[1728357378319,0.4094,2443.0,2442.9,0.4152]
[1728357378916,0.40941,2442.9,2442.8,0.818]
[1728357379319,0.40941,2442.9,2442.8,1.22742]
[1728357381520,0.4094,2443.0,2442.9,0.4094]
[1728357381941,0.40938,2443.1,2443.0,0.40938]
[1728357382313,0.40938,2443.1,2442.8,0.818]
[1728357382520,0.40938,2443.1,2442.9,0.40941]
[1728357382828,0.40937,2443.1,2443.0,0.3935]
[1728357386424,3.2078,2443.3,2443.0,0.3935]
[1728357386724,3.2078,2443.3,2443.2,0.40936]
[1728357387026,3.61715,2443.3,2443.1,0.40936]
[1728357387225,3.61715,2443.3,2443.2,0.416]
[1728357387417,3.61715,2443.3,2443.2,0.8301]
[1728357392629,3.2078,2443.3,2443.0,0.3935]
[1728357392828,0.40937,2443.1,2443.0,0.80289]
[1728357394327,0.3576,2443.2,2443.0,0.3935]
[1728357394526,0.40937,2443.1,2443.0,0.80288]
[1728357395826,3.2078,2443.3,2443.0,0.80288]
[1728357396030,0.40936,2443.2,2443.1,0.40936]
[1728357398427,4.23113,2443.4,2443.0,0.3935]
[1728357398428,0.40937,2443.1,2443.0,0.3935]
[1728357398627,0.4094,2443.0,2442.9,0.40939]
[1728357398828,3.61718,2443.1,2443.0,0.40939]
[1728357399153,0.40938,2443.1,2443.0,0.40939]
[1728357399321,0.4094,2443.0,2442.9,0.4094]
[1728357399531,0.40938,2443.1,2443.0,0.40938]
[1728357399721,0.40939,2443.0,2442.9,0.4094]
[1728357403832,0.40938,2443.1,2443.0,0.40938]
[1728357407641,4.50298,2443.1,2443.0,0.40938]
[1728357408129,0.4094,2443.0,2442.9,0.4094]
[1728357408336,0.40939,2443.1,2442.9,0.40941]
[1728357408535,1.02341,2443.2,2442.8,2.2863]
[1728357408735,0.4094,2443.0,2442.9,0.4094]
[1728357417443,0.40938,2443.1,2443.0,0.40938]
[1728357417746,0.4094,2443.0,2442.9,0.4094]
[1728357418844,1.02341,2443.2,2442.9,0.40941]
[1728357419241,3.2078,2443.1,2442.9,0.40941]
[1728357419743,0.40941,2443.0,2442.9,0.40941]
[1728357419938,0.40941,2442.9,2442.8,0.4242]
[1728357420134,0.40941,2442.9,2442.8,0.83362]
[1728357422445,3.2078,2443.1,2442.8,0.83362]
[1728357422657,0.40941,2442.9,2442.8,0.4242]
[1728357422949,0.40942,2442.8,2442.7,0.77720762]
[1728357424049,5.08722,2442.8,2442.4,0.095]
[1728357424253,5.08722,2442.8,2442.7,0.40944]
[1728357424440,4.6778,2442.8,2442.3,2.49375]
[1728357424641,1.47,2442.4,2442.3,0.4095]
[1728357424849,0.3579,2442.7,2442.2,1.47]
[1728357425153,0.76735,2442.7,2442.6,0.40946]
[1728357425347,0.40946,2442.6,2442.5,0.40947]
[1728357425952,0.40946,2442.6,2442.4,0.8115]
[1728357426147,0.40947,2442.5,2442.4,0.8115]
[1728357427358,8.7722,2442.5,2442.2,0.40952]
[1728357427548,2.6335,2442.4,2442.2,0.40952]
[1728357428153,2.224,2442.4,2442.2,0.40952]
[1728357428458,0.40951,2442.3,2442.2,0.40952]
[1728357431051,0.754,2442.4,2442.0,0.8299]
[1728357431242,0.40951,2442.3,2442.1,0.40953]
[1728357431654,0.40951,2442.3,2442.2,0.40952]
[1728357433954,0.40953,2442.2,2442.1,0.40953]
[1728357434257,0.40952,2442.3,2442.1,0.40953]
[1728357435057,0.40952,2442.3,2442.2,0.4014]
[1728357435549,0.40952,2442.3,2442.2,0.81092]
[1728357435854,0.40952,2442.3,2442.2,0.4014]
[1728357436353,0.40954,2442.1,2442.0,0.8299]
[1728357436550,0.40954,2442.1,2442.0,1.23946]
[1728357437348,0.40954,2442.1,2442.0,0.8299]
[1728357437590,3.61734,2442.1,2442.0,0.4211]
[1728357439155,3.61734,2442.1,2441.9,0.4115]
[1728357439156,0.40956,2442.0,2441.9,0.4115]
[1728357439653,4.50476,2442.0,2441.9,0.4115]
[1728357440461,4.0952,2442.0,2441.8,0.3938]
[1728357440663,0.40957,2441.9,2441.8,0.3938]
[1728357441358,1.87957,2441.9,2441.8,0.3938]
[1728357442560,5.08737,2441.9,2441.8,0.3938]
[1728357442770,9.18257,2441.9,2441.8,0.3938]
[1728357444558,0.40959,2441.8,2441.7,0.8047]
[1728357444763,1.87959,2441.8,2441.7,0.8047]
[1728357445056,4.50479,2441.8,2441.7,0.8047]
[1728357448266,5.97479,2441.8,2441.7,0.8047]
[1728357450059,0.40962,2441.6,2441.5,0.79553]
[1728357450255,0.40962,2441.6,2441.5,1.63103]
[1728357451860,0.40962,2441.6,2441.5,1.2214]
[1728357452564,0.40962,2441.6,2441.5,1.63104]
[1728357453163,1.47,2441.8,2441.5,1.2214]
[1728357453362,5.70177,2441.9,2441.6,0.40961]
[1728357453554,0.40961,2441.7,2441.6,0.40961]
[1728357454767,5.70177,2441.9,2441.5,1.2214]
[1728357454966,0.40962,2441.6,2441.5,1.63104]
[1728357456261,0.40962,2441.6,2441.5,1.2214]
[1728357456462,1.87962,2441.7,2441.5,1.63104]
[1728357456667,0.40962,2441.6,2441.5,1.63104]
[1728357456967,1.47,2441.7,2441.5,1.63104]
[1728357457171,0.40962,2441.6,2441.5,1.63104]
[1728357461272,0.40962,2441.6,2441.5,1.2214]
[1728357462875,1.47,2441.7,2441.1,4.292]
[1728357463170,1.47,2441.7,2440.1,3.6406964]
[1728357463171,3.2078,2440.9,2439.5,1.3913664]
[1728357463379,3.73058729,2441.1,2439.1,0.3981]
[1728357463380,1.47,2439.6,2439.1,0.3981]
[1728357463586,0.41004,2439.2,2438.7,0.50416981]
[1728357463777,1.88007,2439.0,2438.7,0.50416981]
[1728357464068,0.4121,2440.0,2438.7,0.50416981]
[1728357464069,0.41003,2439.2,2438.7,0.50416981]
[1728357464272,0.41003,2439.2,2438.7,0.30416981]
[1728357464273,1.47,2438.8,2438.7,0.30416981]
[1728357464468,4.1008,2438.8,2438.3,0.813]
[1728357464768,4.6778,2438.5,2438.3,0.813]
[1728357465489,3.2078,2438.5,2438.3,0.813]
[1728357465673,4.6778,2438.5,2438.3,0.4198]
[1728357465975,3.2078,2438.5,2438.3,0.4198]
[1728357467099,3.2078,2439.0,2438.4,4.1008]
[1728357467275,3.2078,2439.0,2438.4,3.6257]
[1728357467471,3.2078,2439.0,2438.4,0.4179]
[1728357468271,3.2078,2438.7,2438.4,0.4179]
[1728357468676,2.5667,2438.7,2438.5,4.1008]
[1728357468871,1.9256,2438.7,2438.6,4.4938]
[1728357469177,3.2078,2439.1,2438.6,0.393]
[1728357469373,3.61778,2439.5,2438.8,3.2078]
[1728357469575,3.2078,2439.5,2438.9,3.2]
[1728357469782,3.2078,2439.5,2439.1,3.2078]
[1728357470473,3.61778,2439.5,2439.1,6.4078]
[1728357470680,0.41001,2439.3,2438.8,3.3028]
[1728357470987,0.41001,2439.3,2438.8,3.2078]
[1728357471676,0.41001,2439.3,2438.8,3.61789]
[1728357472283,0.41004,2439.2,2438.8,3.2078]
[1728357473079,0.41004,2439.2,2438.8,3.61788]
[1728357473574,0.41004,2439.2,2438.9,0.41008]
[1728357473876,0.41004,2439.2,2438.8,3.61789]
[1728357474567,0.41005,2439.1,2438.8,3.2078]
[1728357474768,3.2078,2439.2,2438.8,3.2078]
[1728357474974,0.41008,2439.0,2438.6,4.00312]
[1728357475176,3.2078,2439.2,2438.6,4.00312]
[1728357475477,3.2078,2439.2,2438.6,3.593]
[1728357475876,0.41008,2438.9,2438.6,3.593]
[1728357476077,0.41008,2438.9,2438.6,4.00313]
[1728357476377,0.41009,2438.9,2438.6,3.593]
[1728357476683,0.41009,2438.9,2438.6,4.00313]
[1728357476878,0.41011,2438.7,2438.6,0.393]
[1728357477178,0.4101,2438.8,2438.6,0.393]
[1728357478374,0.41011,2438.7,2438.6,0.393]
[1728357479783,3.2078,2439.1,2438.6,4.4938]
[1728357480078,0.4101,2438.8,2438.6,4.01092]
[1728357480279,0.41006,2439.0,2438.7,0.41011]
[1728357480614,3.2078,2439.1,2438.7,0.41011]
[1728357480786,3.2078,2439.1,2438.6,3.6008]
[1728357480982,0.41009,2438.8,2438.6,4.01092]
[1728357481384,0.41007,2439.0,2438.7,4.5109]
[1728357481596,0.41008,2439.0,2438.7,0.4101]
[1728357481779,0.41008,2439.0,2438.8,0.41008]
[1728357482079,0.41002,2439.3,2438.9,3.61788]
[1728357482285,0.41002,2439.3,2439.1,0.41004]
[1728357482709,1.02498,2439.5,2438.9,3.2078]
[1728357482881,0.41003,2439.2,2439.0,0.41005]
[1728357483887,0.41001,2439.4,2439.2,0.41003]
[1728357484186,3.2,2439.6,2439.1,0.41004]
[1728357484385,3.2,2439.6,2438.9,3.2078]
[1728357484595,3.2078,2439.7,2439.0,3.2]
[1728357484892,0.40997,2439.6,2439.4,0.40999]
[1728357485295,3.2078,2439.7,2439.4,0.40999]
[1728357485587,0.40996,2439.6,2439.4,0.40999]
[1728357485893,0.40996,2439.6,2439.2,3.2078]
[1728357485894,0.4099,2440.0,2439.8,0.40992]
[1728357487185,0.40991,2440.0,2439.8,0.40992]
[1728357487584,3.2,2440.2,2439.5,3.3028]
[1728357487784,3.2,2440.2,2439.7,0.40993]
[1728357487785,0.40991,2439.9,2439.7,0.40993]
[1728357488386,0.40993,2439.8,2439.6,0.40994]
[1728357488592,4.22468,2440.2,2439.7,0.40994]
[1728357488784,0.40992,2439.9,2439.7,0.40994]
[1728357489186,0.4099,2440.0,2439.7,0.40994]
[1728357489389,0.4099,2440.0,2439.8,0.40992]
[1728357489891,4.22468,2440.2,2439.5,3.2078]
[1728357490287,0.4099,2440.0,2439.8,0.40992]
[1728357490796,0.40983,2440.4,2440.2,0.40985]
[1728357491097,4.22441,2440.8,2440.1,6.4078]
[1728357491284,0.40983,2440.4,2440.3,0.40984]
[1728357491482,0.40982,2440.5,2440.3,0.40984]
[1728357491988,0.40982,2440.5,2440.1,3.2078]
[1728357492188,3.2,2440.8,2440.1,3.2078]
[1728357492399,0.40981,2440.5,2440.1,3.2078]
[1728357492589,0.40981,2440.5,2440.4,0.40983]
[1728357492895,0.40979,2440.7,2440.5,0.4098]
[1728357493096,0.40979,2440.6,2440.5,0.4098]
[1728357493390,3.2,2440.8,2440.1,3.3028]
[1728357493688,0.40976,2440.8,2440.6,0.40978]
[1728357493901,0.40975,2440.9,2440.8,0.40976]
[1728357494094,0.40973,2441.0,2440.8,0.40976]
[1728357494285,0.40973,2441.0,2440.6,0.4273]
[1728357494482,0.40973,2441.0,2440.8,0.40975]
[1728357494687,3.73058729,2441.1,2441.0,0.40972]
[1728357494887,4.14030729,2441.1,2440.9,0.40974]
[1728357495089,0.40973,2441.0,2440.8,3.61755]
[1728357495318,0.40973,2441.0,2440.9,0.40974]
[1728357496296,3.73058729,2441.1,2440.9,0.40974]
[1728357496501,0.40973,2441.0,2440.8,3.61754]
[1728357496697,0.40973,2441.0,2440.9,0.40974]
[1728357496998,4.14030729,2441.1,2440.9,0.40974]
[1728357497996,3.73058729,2441.1,2440.6,0.8315]
[1728357498292,4.63498,2441.4,2440.6,0.8315]
[1728357498293,0.40968,2441.3,2441.1,0.40969]
[1728357498491,0.4108,2441.4,2440.8,3.2078]
[1728357498692,0.40965,2441.5,2441.3,0.40966]
[1728357498891,0.40965,2441.5,2441.4,0.40966]
[1728357499091,0.40965,2441.5,2441.2,0.4031]
[1728357499303,0.40963,2441.6,2441.4,0.40965]
[1728357499598,0.40966,2441.4,2441.2,0.4031]
[1728357499796,0.40965,2441.5,2441.3,0.40967]
[1728357501494,0.40965,2441.5,2441.2,0.4031]
[1728357501495,6.4078,2441.6,2441.2,0.4031]
[1728357501695,0.40967,2441.3,2441.2,0.4031]
[1728357501996,7.81999,2441.6,2441.2,0.4031]
[1728357502189,0.40967,2441.4,2441.2,0.81279]
[1728357502801,7.81999,2441.6,2441.2,0.4031]
[1728357503095,0.40967,2441.3,2441.2,0.4031]
[1728357503298,0.40967,2441.3,2441.2,0.81279]
[1728357503603,0.40967,2441.3,2441.2,0.4031]
[1728357504004,0.40967,2441.3,2441.2,0.81279]
[1728357505104,6.7959,2441.6,2440.8,3.2078]
[1728357505304,1.02413,2441.5,2441.1,0.4097]
[1728357505504,0.40969,2441.3,2441.1,0.4097]
[1728357505705,0.40969,2441.3,2440.8,3.6034]
[1728357506103,0.40969,2441.3,2441.2,0.40969]
[1728357506306,0.40967,2441.4,2441.2,0.40969]
[1728357506905,1.02413,2441.5,2440.8,0.3956]
[1728357507123,0.40968,2441.3,2441.2,0.40969]
[1728357507411,0.40968,2441.3,2441.1,0.4097]
[1728357507599,0.40966,2441.4,2441.1,0.4097]
[1728357507802,0.40969,2441.3,2441.1,0.4097]
[1728357508312,0.40969,2441.3,2441.2,0.40969]
[1728357509008,1.02413,2441.5,2440.9,3.2078]
[1728357509209,1.02413,2441.5,2440.9,3.61753]
[1728357509403,0.40972,2441.1,2440.9,0.40973]
[1728357509910,0.40972,2441.1,2441.0,0.40972]
[1728357510614,3.6202,2441.4,2441.1,0.40971]
[1728357510615,0.4097,2441.2,2441.1,0.40971]
[1728357510815,3.6202,2441.4,2440.8,0.3956]
[1728357510816,0.4202,2441.4,2440.8,0.3956]
[1728357511014,0.4202,2441.4,2440.9,3.2078]
[1728357511421,0.82986,2441.4,2441.3,0.40967]
[1728357511609,0.82466,2441.5,2440.9,4.23214]
[1728357511804,3.2,2441.8,2440.9,3.2078]
[1728357512115,0.40959,2441.9,2441.8,0.40959]
[1728357512415,4.50479,2441.9,2441.8,0.40959]
[1728357512808,4.0952,2441.9,2441.6,0.40962]
[1728357513115,0.40969,2441.2,2441.1,4.292]
[1728357513319,0.40969,2441.2,2440.9,3.3178]